Cogmind - Beta 16 @@@ ROGUE MODE // 2025.11.27 @ 16:57:32 Player: Minty Result: Destroyed by S-43 Plague with Heavy Machine Gun Performance ------------- Evolutions (9) 4500 Regions Visited (19) 3800 Robots Destroyed (259) 1295 Value Destroyed (10338) 10338 Prototype IDs (36) 720 Alien Tech Used (0) 0 Bonus (6779) 6779 TOTAL SCORE: 27432 Bonus ------- High Alert Combat Kills 548 Follower Combat Kills 2216 Registered with UFD 300 Met Optimus in HQ 500 Built Enhanced Grunts 300 A7 Reached Mainframe 300 Met R17 at Cetus 500 Met R17 at Research 2000 Scanned by Researcher 500 Friendly Fire -385 Cogmind --------- Core Integrity 0/1600 Matter 1/300 Energy 99/100 System Corruption 0% Temperature Cool (0) Movement Core (50) Location -1/Access Parts ------- > --- POWER (2) -------- (None) > --- PROPULSION (6) --- (None) > --- UTILITY (13) ----- Advanced Launcher Guidance Computer > --- WEAPON (4) ------- (None) > --- INVENTORY (5) ---- Perforator Omega Cannon Peak State ------------ > --- POWER ------------ Particle Reactor > --- PROPULSION ------- Centrium Heavy Treads Centrium Heavy Treads Enhanced Flexi-carbon Leg > --- UTILITY ---------- Coolant Network Large Storage Unit Enhanced Optical Array Long-range Sensor Array Advanced Signal Interpreter Advanced Launcher Guidance Computer Improved Core Shielding Improved Weapon Shielding Centrium Medium Armor Plating Centrium Medium Armor Plating Centrium Medium Armor Plating > --- WEAPON ----------- Enhanced Hardcell Cannon Enhanced Hardcell Cannon Enhanced Hardcell Cannon Hellfire Missile Launcher > --- INVENTORY -------- Quantum Reactor Large Storage Unit Improved Core Shielding Force Field Hacking Suite Enhanced Quantum Rifle High-powered Disruptor Cannon Enhanced Hardcell Cannon Enhanced Hardcell Cannon Perforator Omega Cannon Micro-nuke Launcher [Rating: 179] Favorites ----------- Power Heavy Deuterium Engine Engine Heavy Deuterium Engine Power Core Neutrino Core Reactor Light Antimatter Reactor Propulsion Advanced Treads Treads Advanced Treads Leg Enhanced Flexi-carbon Leg Wheel Wheel Hover Unit Gravmag Array Flight Unit Xenon Bombardment Thruster Utility Hacking Suite Device Improved Terrain Scanner Storage High-capacity Storage Unit Processor Terrain Scan Processor Hackware Hacking Suite Protection Centrium Medium Armor Plating Weapon Advanced Beam Rifle Energy Gun Advanced Beam Rifle Energy Cannon Heavy Particle Cannon Ballistic Gun Enhanced Autogun Ballistic Cannon Enhanced Hardcell Cannon Launcher Grenade Launcher Special Weapon Remote Datajack Piercing Weapon Enhanced Force Lance Build | -11 -10 -9 -8 -7 -7 -7 -7 -5 -5 -5 -4 -4 -4 -4 -4 -3 -3 -2 -1 ------- Run | Yrd Mat Mat Mat Fac Sto Rec Scr Fac Upp Upp Fac Was Fac Ext Cet Res Tes Res Acc Slots Evolved 18 | . . 2 2 2 . . . 4 . . 2 . . . . 2 . 2 2 Power 1 | . . . . . . . . . . . . . . . . . . . 1 Propulsion 4 | . . . . . . . . 1 . . 2 . . . . 1 . . . Utility 11 | . . 2 2 1 . . . 3 . . . . . . . 1 . 1 1 Weapon 2 | . . . . 1 . . . . . . . . . . . . . 1 . Parts Attached 196 | . 6 19 19 10 16 2 3 21 8 1 13 2 4 33 12 11 11 3 2 Power 19 | . . 2 2 2 4 1 . 1 1 . 1 . . 3 1 1 . . . Engine 12 | . . 2 2 2 3 1 . . 1 . 1 . . . . . . . . Core 3 | . . . . . 1 . . 1 . . . . . 1 . . . . . Reactor 4 | . . . . . . . . . . . . . . 2 1 1 . . . Propulsion 41 | . 2 3 2 3 4 . . 4 . 1 2 . 2 12 3 1 . . 2 Treads 20 | . 2 2 2 3 2 . . 2 . . . . . 4 3 . . . . Leg 7 | . . . . . . . . . . . . . . 6 . 1 . . . Wheel 3 | . . 1 . . . . . 2 . . . . . . . . . . . Hover 9 | . . . . . 2 . . . . 1 2 . 2 2 . . . . . Flight 2 | . . . . . . . . . . . . . . . . . . . 2 Utility 81 | . 3 7 8 4 6 . 3 12 1 . 7 1 2 11 3 7 4 2 . Device 26 | . 1 . 3 2 . . 2 2 . . 3 . 2 7 . 3 1 . . Storage 5 | . 1 . . 1 . . . . . . . . . 1 . . 1 1 . Processor 20 | . . 6 3 . . . 1 3 1 . 2 . . . . 2 2 . . Hackware 14 | . . 1 . . 3 . . 6 . . 2 1 . 1 . . . . . Protection 16 | . 1 . 2 1 3 . . 1 . . . . . 2 3 2 . 1 . Artifact . | . . . . . . . . . . . . . . . . . . . . Weapon 55 | . 1 7 7 1 2 1 . 4 6 . 3 1 . 7 5 2 7 1 . Energy Gun 22 | . . 4 3 1 1 . . 2 3 . 1 . . 4 2 . . 1 . Energy Cannon 4 | . . . 1 . . . . . . . . . . 1 . 1 1 . . Ballistic Gun 6 | . . 1 1 . . . . 1 . . . . . . 3 . . . . Ballistic Cannon 10 | . . 1 . . . . . . 2 . 1 . . 1 . . 5 . . Launcher 10 | . 1 1 2 . 1 1 . 1 . . . . . 1 . 1 1 . . Special Weapon 1 | . . . . . . . . . 1 . . . . . . . . . . Impact Weapon . | . . . . . . . . . . . . . . . . . . . . Slashing Weapon . | . . . . . . . . . . . . . . . . . . . . Piercing Weapon 2 | . . . . . . . . . . . 1 1 . . . . . . . Special Melee Weapon . | . . . . . . . . . . . . . . . . . . . . Unidentified Prototypes 24 | . . . 3 . 5 . . 1 . . 1 . . . 4 5 5 . . Corrupted Parts 13 | . . . . . . . . 2 . . 2 1 . . 8 . . . . System Corruption 81 | . . . . . . . . 6 . . 4 5 . . 66 . . . . Parts Lost 74 | . . 3 . 2 5 . . 4 9 1 1 . 4 27 1 1 . 12 4 Power 5 | . . 1 . . . . . . 1 . . . . 3 . . . . . Propulsion 26 | . . 2 . . 1 . . 2 2 1 . . . 12 1 . . 3 2 Utility 28 | . . . . 1 3 . . . 2 . 1 . 4 8 . . . 8 1 Weapon 15 | . . . . 1 1 . . 2 4 . . . . 4 . 1 . 1 1 Highest Loss Streak 12 | . . 3 . 1 4 . . 2 4 1 1 . 2 9 1 1 . 12 4 To Critical Strikes 1 | . . . . . . . . . . . . . . 1 . . . . . Average Backups 12 | . 7 13 14 14 17 19 17 17 14 13 4 5 4 4 9 9 7 8 2 Power 1 | . 1 1 . . 3 3 3 3 2 2 1 1 1 . 1 1 1 . . Propulsion 2 | . 2 1 2 1 1 3 3 4 7 7 3 3 3 . . . . . . Utility 4 | . 3 6 6 5 7 8 9 5 2 2 . 1 . 1 1 2 2 2 . Weapon 3 | . . 3 5 6 4 4 2 2 2 1 . . . 1 7 6 4 5 2 Tool/Special . | . . . . . . . . . . . . . . . . . . . . Unused Backups 40 | . 9 . 6 4 2 4 1 2 . . 2 . . . 1 1 2 6 . Power 2 | . . . . . 2 . . . . . . . . . . . . . . Propulsion 6 | . 4 . . . . . . . . . 2 . . . . . . . . Utility 16 | . 2 . 2 2 . 3 1 2 . . . . . . . . 1 3 . Weapon 15 | . 3 . 4 2 . . . . . . . . . . 1 1 1 3 . Tool/Special 1 | . . . . . . 1 . . . . . . . . . . . . . Average Slot Usage (%) 87 | . 80 97 99 99 97 96 99 93 87 86 85 89 86 64 73 78 79 69 8 Engine 5 | . 14 10 9 7 7 7 7 5 5 5 5 5 5 2 . . . . . Treads 11 | . 18 21 18 15 14 15 15 15 1 . . . . 3 10 9 9 6 . Leg 1 | . 9 . . . . . . . . . . . . 1 . 2 4 3 . Hover 1 | . . . . . . . . . . . 14 15 15 8 . . . . . Device 10 | . 3 . 8 15 9 7 11 12 13 11 14 15 19 8 17 10 9 6 . Storage 5 | . 14 11 9 7 7 7 7 5 5 5 . . . 1 5 4 4 3 . Processor 10 | . . 23 18 15 13 7 7 5 11 17 7 10 10 7 5 6 14 12 7 Hackware 11 | . . 7 9 7 6 23 18 17 23 23 26 25 18 15 10 5 . . . Protection 8 | . 8 . 9 6 13 7 7 9 . . . . . 2 13 18 19 15 . Energy Gun 8 | . . 12 11 15 13 12 14 9 9 5 8 10 10 3 2 . . . . Ballistic Gun 4 | . . 4 . 7 5 5 6 4 . . . . . . 1 13 8 . . Ballistic Cannon 1 | . . . 3 . . . . . 3 11 . . . 1 . . 5 11 . Launcher 1 | . 11 3 . . 1 . . . . . . . . . . . . 2 . Peak Build Rating 179 | . 8 19 34 47 51 50 54 76 76 77 91 91 92 91 120 154 169 179 36 Average Rating 66 | . 6 16 28 44 46 47 50 67 67 69 84 90 89 66 98 144 159 153 19 On Entrance 63 | 6 6 8 18 34 46 50 37 53 63 69 77 87 91 85 91 119 154 164 19 Avg Prop Armor Cover (%) 7 | . . . . . . . . 10 10 . . . . 39 . 1 1 1 . Naked Turns . | . . . . . . . . . . . . . . . . . . . . Heaviest Build 118 | 12 33 34 41 65 69 63 65 74 85 85 31 35 37 49 62 73 94 118 . Greatest Support 163 | 20 40 46 46 56 56 44 44 78 20 20 52 48 52 163 163 160 160 160 12 Greatest Overweight (x) 8 | . . 3 . 1 1 1 1 6 8 8 . . . 5 . . . 1 . Average Overweight (x) . | . . . . . 1 1 1 . 5 7 . . . . . . . . . Largest Inventory Capacity 20 | . 15 15 15 20 20 20 20 20 20 20 20 5 5 10 10 10 10 15 5 Average Capacity 14 | . 11 15 15 15 20 20 20 20 20 20 5 5 5 6 10 10 10 11 5 Most Carried 20 | . 9 15 15 15 20 20 20 20 20 17 14 5 5 7 10 10 10 15 5 Average Carried 13 | . 7 13 14 14 17 19 18 19 18 16 5 5 4 4 9 9 9 11 4 Final Capacity 20 | 8 15 15 15 20 20 20 20 20 20 20 5 5 5 10 10 10 10 5 5 Final Carried 20 | 6 9 15 15 15 20 20 20 19 17 15 5 5 5 7 10 10 10 5 4 Class Distribution -------------------- 20% | Mutant 20% | Commander-Skirmisher 17% | Scavenger-Tank 14% | Hacker-Mutant 11% | Skirmisher 5% | Hacker-Skirmisher 3% | Scavenger-Mutant Dominant Class ---------------- Mutant | -10/Materials Mutant | -9/Materials Mutant | -8/Materials Skirmisher | -7/Factory Tank | -7/Storage Commander-Skirmisher | -7/Recycling Commander-Skirmisher | -7/Scraptown Commander-Skirmisher | -5/Factory Hacker-Skirmisher | -5/Upper Caves Hacker-Gunner | -5/Upper Caves Hacker-Mutant | -4/Factory Hacker-Mutant | -4/Waste Hacker-Mutant | -4/Factory Hacker-Mutant | -4/Extension Scavenger-Mutant | -4/Cetus Scavenger-Tank | -3/Research Scavenger-Tank | -3/Testing Scavenger-Tank | -2/Research Mutant | -1/Access Resources | -11 -10 -9 -8 -7 -7 -7 -7 -5 -5 -5 -4 -4 -4 -4 -4 -3 -3 -2 -1 ----------- Run | Yrd Mat Mat Mat Fac Sto Rec Scr Fac Upp Upp Fac Was Fac Ext Cet Res Tes Res Acc Matter Collected 5979 | 194 211 399 621 368 411 59 138 317 482 19 191 71 69 843 155 727 297 369 38 Remotely . | . . . . . . . . . . . . . . . . . . . . Salvage Created 11121 | . 250 778 1333 1230 1380 163 . 581 549 128 327 . 56 2143 183 937 553 374 156 Parts 533 | . 22 54 68 55 53 9 . 32 41 2 17 . 5 87 6 37 23 12 10 Haulers Intercepted 7 | . 2 . 2 . 3 . . . . . . . . . . . . . . Recyclers Shooed 5 | . . 1 . 1 2 . . 1 . . . . . . . . . . . Parts Field Recycled . | . . . . . . . . . . . . . . . . . . . . Retrieved Matter . | . . . . . . . . . . . . . . . . . . . . Parts Self-Destructed 32 | . . . . . . . . . 31 1 . . . . . . . . . Prevented 1 | . . . . . . . . . 1 . . . . . . . . . . Parts Restored . | . . . . . . . . . . . . . . . . . . . . Kills | -11 -10 -9 -8 -7 -7 -7 -7 -5 -5 -5 -4 -4 -4 -4 -4 -3 -3 -2 -1 ------- Run | Yrd Mat Mat Mat Fac Sto Rec Scr Fac Upp Upp Fac Was Fac Ext Cet Res Tes Res Acc Combat Hostiles Destroyed 187 | . 7 18 18 15 20 1 . 12 24 3 7 . 1 21 3 13 10 10 4 Melee 13 | . . . . . 1 . . . . . 1 . . 8 . . 1 2 . Guns 60 | . . 4 7 15 6 1 . 4 3 2 6 . 1 1 . 8 2 . . Cannons 18 | . . 2 6 . . . . . . 1 . . . 4 . . 2 2 1 AOE 90 | . 7 12 3 . 12 . . 8 21 . . . . 6 3 5 5 5 3 Classes Destroyed 21 | . 7 3 2 2 1 . . . 2 . . . . 2 . . 1 1 . Worker 16 | . 3 1 5 2 2 . . 1 . . . . . . . 1 1 . . Builder 9 | . 1 . . . . . . 3 . . . . 1 3 . . . 1 . Hauler 7 | . 2 . 2 . 3 . . . . . . . . . . . . . . Recycler 11 | . . . 4 3 . . . . . . 1 . . 2 . . 1 . . Minesweeper 1 | . . . . . . . . . 1 . . . . . . . . . . Mechanic 3 | . . 1 . 1 1 . . . . . . . . . . . . . . Operator 10 | . 4 1 1 2 . . . 1 . . 1 . . . . . . . . Watcher 8 | . 2 2 2 1 . . . . . . . . . 1 . . . . . Swarmer 57 | . 3 6 3 . . . . 5 18 1 7 . . . . 4 5 2 3 Grunt 83 | . 4 5 9 10 12 2 . 3 6 1 . . 1 13 . 6 5 5 1 Brawler 5 | . . 1 1 . 2 . . . . . . . . . . 1 . . . Duelist 5 | . . . . 2 1 . . . . . . . . . . 1 . 1 . Protector 1 | . . . . . 1 . . . . . . . . . . . . . . Researcher 2 | . . . . . . . . . . . . . . . . . 2 . . Sentry 25 | . . 6 4 . 3 1 . 2 . 1 . . . 6 . 1 . 1 . Hunter 6 | . . . 1 2 . . . 2 . . . . . 1 . . . . . Programmer 2 | . . . . 1 1 . . . . . . . . . . . . . . Q-Series 1 | . . . . . . . . . . . . . . . . . . 1 . Behemoth 1 | . . . . . . . . . . . . . . 1 . . . . . Cetus Guard 3 | . . . . . . . . . . . . . . . 3 . . . . Enhanced Grunt 1 | . . . . . . . . . . . . . . . . 1 . . . Scrapoid 1 | . . . . . . . . . . . . . . 1 . . . . . Samaritan 2 | . . . . . . . . . 2 . . . . . . . . . . Guerrilla 1 | . . . . . . . . . . . . . . 1 . . . . . Best Kill Streak 14 | . 6 11 6 6 14 1 . 7 12 3 4 . 1 8 2 3 6 5 4 Combat Bots Only 13 | . 3 9 5 4 13 1 . 6 8 3 4 . 1 3 2 3 5 4 4 Max Kills in Single Turn 5 | . 2 3 2 2 5 2 . 4 5 1 1 . 1 2 2 2 3 2 3 Gunslinging 1 | . . . . 1 . . . . . . . . . . . . . . . Exploded 5 | . 1 3 2 . 4 . . 4 5 . . . . 1 2 2 3 2 3 Melee 1 | . . . . . 1 . . . . . 1 . . 1 . . 1 1 . Uniques/NPCs Destroyed . | . . . . . . . . . . . . . . . . . . . . Combat | -11 -10 -9 -8 -7 -7 -7 -7 -5 -5 -5 -4 -4 -4 -4 -4 -3 -3 -2 -1 -------- Run | Yrd Mat Mat Mat Fac Sto Rec Scr Fac Upp Upp Fac Was Fac Ext Cet Res Tes Res Acc Hostile Shots Fired 1340 | . 20 92 77 59 118 24 . 67 68 10 46 . 24 266 18 28 53 247 123 Missed 471 | . 6 16 30 17 40 11 . 16 17 4 18 . 12 112 8 11 13 98 42 Hits 869 | . 14 76 47 42 78 13 . 51 51 6 28 . 12 154 10 17 40 149 81 Melee 10 | . . . 1 1 8 . . . . . . . . . . . . . . Projectile 859 | . 14 76 46 41 70 13 . 51 51 6 28 . 12 154 10 17 40 149 81 AOE 1 | . . . . . . . . 1 . . . . . . . . . . . Critical Strikes 37 | . 1 6 3 3 . . . . 1 . 1 . 2 5 4 1 2 4 4 Part Disruptions 6 | . . . . . . . . 2 . . . . . . . . . 4 . Damage Taken 18231 | . 250 945 608 695 1363 188 . 1253 933 127 411 44 361 3342 236 420 802 4381 1872 Core 4675 | . 86 133 24 60 241 5 . 176 160 . 110 2 102 860 . . 12 1099 1605 Absorbed by Shields 92 | . . . . . . . . . . . . . . . 92 . . . . Reduced by Siege Mode 32 | . . . . . . . . . . . . . . . . . 32 . . Redirected to Shielding 329 | . . . . . 10 35 . 19 41 . . . . . . . 5 219 . Ignored by Resistances 74 | . . . 58 16 . . . . . . . . . . . . . . . Regen/Repaired (Parts) 312 | . . . 56 . 181 . . . . . . 75 . . . . . . . Core Remaining (%) 64 | 100 65 66 95 . . . 56 . . 66 . . . . 6 . 99 24 . Volleys Fired 481 | . 31 41 69 48 40 7 . 29 34 6 12 9 6 50 11 35 28 23 2 Largest 4 | . 1 2 2 3 3 3 . 3 3 3 2 2 2 3 3 3 3 4 1 Hottest 246 | . 30 106 110 147 161 141 . 195 246 190 176 176 176 203 240 116 174 239 100 Shots Fired 972 | . 31 78 127 142 101 15 . 71 54 18 23 18 10 57 15 97 73 40 2 Gun 712 | . . 65 80 142 92 12 . 67 34 6 23 18 10 11 9 89 45 9 . Cannon 140 | . . 5 43 . . . . . 2 12 . . . 26 . . 26 25 1 Launcher 117 | . 31 8 4 . 9 3 . 4 15 . . . . 20 6 8 2 6 1 Special 3 | . . . . . . . . . 3 . . . . . . . . . . Kinetic 371 | . . 20 28 48 26 4 . 23 2 12 . . . 24 . 89 71 23 1 Thermal 386 | . . 50 29 74 66 4 . 44 33 6 23 18 10 11 9 . . 9 . Explosive 66 | . 31 . 4 . . 3 . 4 15 . . . . . . . 2 6 1 Electromagnetic 146 | . . 8 66 20 9 4 . . 1 . . . . 22 6 8 . 2 . Robot Hit Streak 32 | . 10 17 30 11 18 7 . 32 10 6 5 7 7 9 16 20 6 9 10 Robot Miss Streak 5 | . 2 3 3 3 4 1 . 3 4 3 4 3 2 3 . 3 2 5 4 Penetration Max 1 | . . . . . . . . 1 . . . . . . . 1 . . . Secondary Targets 9 | . . . . 4 1 . . 2 . . 2 . . . . . . . . Max Gunslinging Chain 1 | . . . . 1 1 . . 1 . . 1 . . . . . . . . Shots Hit Robots 670 | . 19 57 88 95 71 9 . 56 35 9 18 14 7 63 9 55 32 31 2 Core Hits 468 | . 32 31 42 46 54 11 . 28 39 5 9 1 3 55 13 42 24 27 6 Critical Kills 9 | . . . . 1 . . . . 2 1 . . . . . 3 1 . 1 Critical Parts Destroyed 12 | . . . . . . 1 . . 1 . . 1 . . . 8 . . 1 Critical Strikes 52 | . . 3 2 3 7 1 . 2 4 1 1 2 1 8 1 12 2 . 2 Burn 16 | . . 3 . 2 7 . . 2 1 . . . . . 1 . . . . Destroy 23 | . . . . 1 . 1 . . 3 1 . 2 . . . 12 1 . 2 Blast 7 | . . . 2 . . . . . . . . . . 4 . . 1 . . Impale 6 | . . . . . . . . . . . 1 . 1 4 . . . . . Melee Attacks 46 | . . . . . . . . . . . 6 1 4 35 . . . . . Impact . | . . . . . . . . . . . . . . . . . . . . Slashing . | . . . . . . . . . . . . . . . . . . . . Piercing 46 | . . . . . . . . . . . 6 1 4 35 . . . . . Sneak Attacks 12 | . . . . . . . . . . . 2 . 1 9 . . . . . Combat Hostiles 2 | . . . . . . . . . . . . . . 2 . . . . . Follow-up Attacks . | . . . . . . . . . . . . . . . . . . . . Damage Inflicted 28997 | . 1190 1320 2165 2011 3045 345 . 2449 2451 235 622 378 280 4212 861 2384 1815 2755 479 Guns 10842 | . . 683 1289 1949 1295 174 . 1410 606 135 388 378 162 163 153 1390 486 181 . Cannons 3111 | . . 88 599 . . . . . . 100 . . . 914 . . 598 802 10 Explosions 12380 | . 1174 544 260 . 1749 171 . 1039 1845 . . . . 1251 708 943 671 1589 436 Melee 2232 | . . . . . . . . . . . 234 . 118 1880 . . . . . Ramming 432 | . 16 5 17 62 1 . . . . . . . . 4 . 51 60 183 33 Kinetic 6114 | . . 234 399 531 211 34 . 542 . 100 . . . 848 . 1390 1084 731 10 Thermal 7598 | . . 667 321 1120 1829 66 . 906 601 135 388 378 162 186 415 243 . 181 . Explosive 7147 | . 1174 . 260 . . 171 . 1001 1845 . . . . . . . 671 1589 436 Electromagnetic 5474 | . . 414 1168 298 1004 74 . . 5 . . . . 1294 446 700 . 71 . Impact . | . . . . . . . . . . . . . . . . . . . . Slashing . | . . . . . . . . . . . . . . . . . . . . Piercing 2232 | . . . . . . . . . . . 234 . 118 1880 . . . . . Highest Corruption 87 | . 1 1 . 2 4 4 . 8 8 8 4 22 23 21 87 . . 13 . Average Corruption 12 | . 1 1 . 1 4 4 . 7 8 8 3 18 20 20 58 . . 10 . Corruption Purged 5 | . . . . 2 . . . . . . . . 3 . . . . . . Corruption Blocked . | . . . . . . . . . . . . . . . . . . . . Effects 197 | . . 2 . 3 10 12 . 26 22 . 7 10 12 54 27 . . 12 . Message Errors 47 | . . . . . 3 3 . 6 8 . . 4 2 11 8 . . 2 . Matter Fused 37 | . . . . 1 3 4 . 6 1 . 1 1 5 8 7 . . . . Heat Flow Errors 29 | . . . . 2 1 1 . 2 3 . 3 3 1 9 2 . . 2 . Energy Discharges 22 | . . 1 . . . 2 . 4 2 . 2 . . 5 6 . . . . Parts Rejected 2 | . . . . . . . . . . . . . . 1 . . . 1 . Parts Fused 3 | . . . . . . 1 . . 1 . . . . 1 . . . . . Data Loss (minor) 20 | . . . . . 3 1 . 2 3 . . 1 1 7 1 . . 1 . Data Loss (major) 4 | . . 1 . . . . . 1 . . . . . 2 . . . . . Misfires 5 | . . . . . . . . . 2 . . . . 2 1 . . . . Alerts 3 | . . . . . . . . 1 . . . . . 1 . . . 1 . Misdirections 12 | . . . . . . . . . . . . 1 1 6 1 . . 3 . Weapon Failures 13 | . . . . . . . . 4 2 . 1 . 2 1 1 . . 2 . Overload Shots 2 | . . . . . . . . . . . . . . . 2 . . . . Overflow Damage 603 | . 21 . 76 . 32 . . 87 119 . 26 . . 173 . 27 6 36 . Projectiles 63 | . . . 23 . . . . . . . . . . 40 . . . . . Explosions 387 | . 21 . 53 . 32 . . 87 119 . . . . 6 . 27 6 36 . Melee 153 | . . . . . . . . . . . 26 . . 127 . . . . . Knockbacks 25 | . 1 . 1 1 . . . . . 1 . . . 7 . . 6 8 . Impact 3 | . 1 . . 1 . . . . . . . . . . . . . 1 . Kinetic 21 | . . . 1 . . . . . . 1 . . . 6 . . 6 7 . Secondary 1 | . . . . . . . . . . . . . . 1 . . . . . Self-Inflicted Damage 1041 | . 85 40 . 66 268 71 . 92 88 . . . . 157 . . 56 3 115 Shots 37 | . 6 3 . 1 10 2 . 3 3 . . . . 7 . . 1 . 1 Rammed 66 | . 2 2 5 7 . 1 . . . . . . . 1 . 4 4 25 15 Targets Rammed 71 | . 2 2 5 7 1 1 . . . . . . . 1 . 5 5 27 15 Kicked . | . . . . . . . . . . . . . . . . . . . . Crushed 5 | . . . . . 1 . . . . . . . . . . 1 1 2 . Highest Temperature 373 | . 22 270 301 253 373 175 . 267 128 . 230 158 112 244 368 21 30 44 5 Average Temperature 77 | . 10 55 93 56 102 74 . 103 47 . 91 85 31 84 112 12 20 21 5 Received Heat Transfer 2988 | . 78 327 315 270 270 54 . 195 93 18 . . 57 539 . 79 225 387 81 Effects 1 | . . . . . 1 . . . . . . . . . . . . . . Damage (minor) 1 | . . . . . 1 . . . . . . . . . . . . . . Siege Activations 2 | . . . . . . . . . . . . . . . 1 . 1 . . Total Turns 30 | . . . . . . . . . . . . . . . 11 . 19 . . Longest Duration 19 | . . . . . . . . . . . . . . . 11 . 19 . . Martial Activations . | . . . . . . . . . . . . . . . . . . . . Shielding Activations . | . . . . . . . . . . . . . . . . . . . . Robots Disrupted 2 | . . . . . 1 . . . . . . . . 1 . . . . . Combat Hostiles 2 | . . . . . 1 . . . . . . . . 1 . . . . . Robots Corrupted 6 | . . . 3 . . . . . . . . . . 2 . . . 1 . Combat Hostiles 5 | . . . 2 . . . . . . . . . . 2 . . . 1 . Parts Fried 22 | . . . 5 3 2 . . . 1 . . . . 6 1 2 . 2 . Impact Corruptions . | . . . . . . . . . . . . . . . . . . . . Robots Melted 1 | . . . . . 1 . . . . . . . . . . . . . . Combat Hostiles 1 | . . . . . 1 . . . . . . . . . . . . . . Parts Melted 29 | . . 5 1 5 7 . . 3 3 . . . . 4 . 1 . . . Heat Transferred 13051 | . . 1802 592 2146 3138 111 . 1567 925 185 518 518 222 372 533 200 . 222 . Parts Sabotaged . | . . . . . . . . . . . . . . . . . . . . Parts Stolen . | . . . . . . . . . . . . . . . . . . . . Parts Stripped . | . . . . . . . . . . . . . . . . . . . . Power Chain Reactions 16 | . . 2 . . 6 . . . . . . . . 4 3 1 . . . Alert | -11 -10 -9 -8 -7 -7 -7 -7 -5 -5 -5 -4 -4 -4 -4 -4 -3 -3 -2 -1 ------- Run | Yrd Mat Mat Mat Fac Sto Rec Scr Fac Upp Upp Fac Was Fac Ext Cet Res Tes Res Acc Maximum Alert Level 3 | . 1 1 2 1 1 . . 2 . . 1 . 1 2 1 3 2 2 1 Low Security (%) 51 | . 89 54 74 79 30 100 . 96 . . . 100 35 20 63 6 . . . Level 1 30 | . 10 45 19 20 69 . . 1 . . 100 . 64 28 36 2 20 94 100 Level 2 12 | . . . 6 . . . . 2 . . . . . 50 . 25 79 5 . Level 3 5 | . . . . . . . . . . . . . . . . 66 . . . Level 4 . | . . . . . . . . . . . . . . . . . . . . Level 5 . | . . . . . . . . . . . . . . . . . . . . High Security . | . . . . . . . . . . . . . . . . . . . . Max Security . | . . . . . . . . . . . . . . . . . . . . Peak Influence 848 | . 295 384 422 243 376 185 . 639 . . 379 133 342 477 248 848 575 411 315 Initial 374 | . . 117 161 45 91 141 . . . . 284 113 72 138 148 134 374 317 216 Average 242 | . 107 188 151 101 235 132 . 44 . . 324 109 215 336 172 694 480 321 239 Influence Increases 9350 | . 490 599 685 587 717 167 . 882 565 60 181 130 512 1451 316 984 456 409 159 Destroy 0b10 Robot/C 4600 | . 140 360 360 300 440 60 . 300 480 60 140 . 240 660 160 380 240 200 80 Destroy 0b10 Robot/NC 355 | . 60 25 70 45 40 . . 25 5 . 10 . 10 30 10 10 10 5 . Destroy Leader 822 | . 48 114 98 62 106 . . 70 50 . 10 . 50 82 . 62 30 30 10 Allied During Kill 816 | . . . . . 59 39 . 32 . . . . 102 261 93 226 4 . . Trap Triggered on 0b10 30 | . . . . . . . . . . . . . . 30 . . . . . Successful Hack 263 | . 31 2 8 83 9 40 . 6 . . 6 . 4 29 . 21 . . 24 Select Force Hacks 90 | . . 30 60 . . . . . . . . . . . . . . . . Disable Machine 795 | . 60 30 15 75 45 . . 285 . . . . 30 75 15 30 75 30 30 Anti-Garrison Action 150 | . . . . . . . . . . . . . . . . 150 . . . Destroy Structure 1039 | . 151 38 44 22 3 28 . 164 . . . 130 76 74 38 60 82 114 15 Partial Spotted 30 | . . . . . . . . . . . 15 . . 15 . . . . . Lose Combat Pursuer 360 | . . . 30 . 15 . . . 30 . . . . 195 . 45 15 30 . Influence Decreases 9065 | . 211 494 969 487 555 467 62 249 675 130 309 352 331 1468 359 542 558 613 234 Entered New Map 2617 | . . 162 223 55 109 221 62 . 235 100 169 212 31 146 119 90 292 247 144 Time Decay 4358 | . 211 302 446 412 356 246 . 149 350 20 130 100 80 422 230 362 246 246 50 Lost Part 740 | . . 30 . 20 50 . . 40 90 10 10 . 40 270 10 10 . 120 40 Lost Ally 900 | . . . . . 40 . . 60 . . . 40 180 480 . 80 20 . . Purge Threat 450 | . . . 300 . . . . . . . . . . 150 . . . . . Squads Dispatched 50 | . 2 2 3 4 7 . . 3 . . 1 . 5 5 . 8 6 4 . Investigation 19 | . . 1 2 2 3 . . 2 . . . . 3 3 . 3 . . . Extermination 5 | . . . . 1 1 . . 1 . . . . . . . . 1 1 . Reinforcement 20 | . 2 1 1 1 1 . . . . . 1 . . 2 . 5 5 1 . Assault 4 | . . . . . 2 . . . . . . . . . . . . 2 . Garrison 2 | . . . . . . . . . . . . . 2 . . . . . . Intercept . | . . . . . . . . . . . . . . . . . . . . Searches Triggered . | . . . . . . . . . . . . . . . . . . . . Construction Impeded 5 | . . . . . 1 . . . . . . . . 1 . 1 2 . . Haulers Reinforced . | . . . . . . . . . . . . . . . . . . . . Active Scanning Responses . | . . . . . . . . . . . . . . . . . . . . Cargo Convoy Interrupts . | . . . . . . . . . . . . . . . . . . . . Stealth | -11 -10 -9 -8 -7 -7 -7 -7 -5 -5 -5 -4 -4 -4 -4 -4 -3 -3 -2 -1 --------- Run | Yrd Mat Mat Mat Fac Sto Rec Scr Fac Upp Upp Fac Was Fac Ext Cet Res Tes Res Acc Distress Signals 24 | . 1 3 2 . 3 . . . . . 1 . 3 5 2 1 . 2 1 Communications Jammed . | . . . . . . . . . . . . . . . . . . . . Distress Signals . | . . . . . . . . . . . . . . . . . . . . Times Spotted 343 | . 18 27 32 19 28 3 . 21 17 3 16 6 9 50 9 31 15 26 13 Peak Tracking Total 12 | . 4 8 4 3 10 1 . 6 6 3 5 2 5 11 5 6 4 9 12 Tactical Retreats 16 | . . . 2 . 1 . . . 2 . . . . 6 . 2 1 2 . Traps | -11 -10 -9 -8 -7 -7 -7 -7 -5 -5 -5 -4 -4 -4 -4 -4 -3 -3 -2 -1 ------- Run | Yrd Mat Mat Mat Fac Sto Rec Scr Fac Upp Upp Fac Was Fac Ext Cet Res Tes Res Acc Traps Triggered 15 | . 1 . . 1 1 . . 3 . . 1 . . 8 . . . . . Indirectly 2 | . . . . . . . . . . . . . . 2 . . . . . Trap Hack Attempts . | . . . . . . . . . . . . . . . . . . . . Triggered . | . . . . . . . . . . . . . . . . . . . . Disarmed . | . . . . . . . . . . . . . . . . . . . . Reprogrammed 6 | . . . . . . . . . . . . . . 6 . . . . . Reused 3 | . . . . . . . . . . . . . . 3 . . . . . Traps Extracted . | . . . . . . . . . . . . . . . . . . . . Installed . | . . . . . . . . . . . . . . . . . . . . Triggered 3 | . . . . . . . . . . . . . . 3 . . . . . Machines | -11 -10 -9 -8 -7 -7 -7 -7 -5 -5 -5 -4 -4 -4 -4 -4 -3 -3 -2 -1 ---------- Run | Yrd Mat Mat Mat Fac Sto Rec Scr Fac Upp Upp Fac Was Fac Ext Cet Res Tes Res Acc Machines Disabled 55 | . 4 2 1 5 3 . . 19 . . . . 2 5 1 3 6 2 2 Max in Single Turn 8 | . 1 2 1 4 2 . . 8 . . . . . 1 1 1 1 1 2 Garrison Access 3 | . . . 1 . . . . . . . . . . . . 1 . 1 . Machines Repaired . | . . . . . . . . . . . . . . . . . . . . Machines Dismantled . | . . . . . . . . . . . . . . . . . . . . Machines Sabotaged . | . . . . . . . . . . . . . . . . . . . . Overloaded Fab Kills . | . . . . . . . . . . . . . . . . . . . . Hacking | -11 -10 -9 -8 -7 -7 -7 -7 -5 -5 -5 -4 -4 -4 -4 -4 -3 -3 -2 -1 --------- Run | Yrd Mat Mat Mat Fac Sto Rec Scr Fac Upp Upp Fac Was Fac Ext Cet Res Tes Res Acc Machines Accessed 69 | . 4 3 9 7 4 5 2 3 1 . 3 . 5 14 2 1 2 2 2 Terminals 46 | . 3 2 5 5 2 4 . 1 . . 2 . 4 12 2 . 1 1 2 Fabricators 3 | . . . . . . . . 1 . . 1 . . . . 1 . . . Repair Stations 3 | . . . 1 . 2 . . . . . . . . . . . . . . Recycling Units 5 | . 1 . . . . 1 . . . . . . . 2 . . . 1 . Scanalyzers 5 | . . 1 2 1 . . . 1 . . . . . . . . . . . Garrison Access 4 | . . . 1 1 . . . . . . . . 1 . . . 1 . . Total Hacks 255 | . 16 23 43 29 11 24 9 14 1 . 18 . 11 42 3 2 2 4 3 Successful 165 | . 11 19 36 21 4 14 9 11 1 . 12 . 3 20 1 2 . . 1 Failed 89 | . 5 3 7 8 7 10 . 3 . . 6 . 8 22 2 . 2 4 2 Catastrophic 10 | . . . . 1 . . . 1 . . . . 2 1 1 . 2 1 1 Database Lockouts 1 | . . 1 . . . . . . . . . . . . . . . . . Manual 93 | . 10 4 15 9 6 13 . 3 . . 8 . 5 17 1 . . 2 . Terminals 147 | . 13 6 17 13 7 21 . 3 . . 12 . 8 38 3 . 1 2 3 Fabricators 16 | . . . . . . . . 8 . . 6 . . . . 2 . . . Repair Stations 6 | . . . 2 . 4 . . . . . . . . . . . . . . Recycling Units 12 | . 3 . . . . 3 . . . . . . . 4 . . . 2 . Scanalyzers 54 | . . 17 22 12 . . . 3 . . . . . . . . . . . Garrison Access 10 | . . . 2 4 . . . . . . . . 3 . . . 1 . . Terminal Hacks 63 | . 7 1 5 6 2 7 9 1 1 . 6 . 2 14 1 . . . 1 Record 4 | . . . . . . . 3 . . . . . . . 1 . . . . Part Schematic 5 | . . . . 1 . 3 . . . . 1 . . . . . . . . Robot Schematic 2 | . . . . 1 . 1 . . . . . . . . . . . . . Robot Analysis 11 | . 1 . . 1 . 2 6 . . . 1 . . . . . . . . Prototype ID Bank 5 | . 2 . . . 1 . . . . . . . . 2 . . . . . Open Door 8 | . . . . . 1 . . . 1 . . . 1 5 . . . . . Branch Access Points 5 | . 1 . . 1 . . . 1 . . 1 . 1 . . . . . . Terminal Index 4 | . 1 . . . . 1 . . . . 1 . . 1 . . . . . Repair Station Index 1 | . . . . . . . . . . . . . . 1 . . . . . Garrison Index 1 | . . . . . . . . . . . 1 . . . . . . . . Alert Level 5 | . 1 . 2 1 . . . . . . . . . 1 . . . . . Unreport Threat 3 | . . . 2 . . . . . . . . . . 1 . . . . . Locate Traps 6 | . 1 1 . 1 . . . . . . 1 . . 1 . . . . 1 Reprogram Traps 1 | . . . . . . . . . . . . . . 1 . . . . . Zone Layout 2 | . . . 1 . . . . . . . . . . 1 . . . . . Fabricator Hacks 13 | . . . . . . . . 7 . . 4 . . . . 2 . . . Load Schematic 7 | . . . . . . . . 4 . . 2 . . . . 1 . . . Build 6 | . . . . . . . . 3 . . 2 . . . . 1 . . . Repair Station Hacks 2 | . . . 2 . . . . . . . . . . . . . . . . Scan Component 1 | . . . 1 . . . . . . . . . . . . . . . . Repair 1 | . . . 1 . . . . . . . . . . . . . . . . Recycling Unit Hacks 4 | . 1 . . . . 3 . . . . . . . . . . . . . Process 1 | . . . . . . 1 . . . . . . . . . . . . . Report Inventory 2 | . 1 . . . . 1 . . . . . . . . . . . . . Retrieve Matter 1 | . . . . . . 1 . . . . . . . . . . . . . Scanalyzer 48 | . . 14 20 11 . . . 3 . . . . . . . . . . . Insert Component 16 | . . 3 8 4 . . . 1 . . . . . . . . . . . Analyze 18 | . . 3 8 6 . . . 1 . . . . . . . . . . . Retrieve Study 14 | . . 8 4 1 . . . 1 . . . . . . . . . . . Garrison Access Hacks 1 | . . . 1 . . . . . . . . . . . . . . . . Seal Access 1 | . . . 1 . . . . . . . . . . . . . . . . Unauthorized Hacks 34 | . 3 4 8 4 2 4 . . . . 2 . 1 6 . . . . . Terminals 24 | . 3 3 6 1 . 4 . . . . 1 . 1 5 . . . . . Track 3 | . . . . . . . . . . . . . 1 2 . . . . . Botnet 7 | . 1 1 2 . . 1 . . . . . . . 2 . . . . . Disrupt 2 | . . . . . . . . . . . 1 . . 1 . . . . . Operators 2 | . . . 1 1 . . . . . . . . . . . . . . . Skim 10 | . 2 2 3 . . 3 . . . . . . . . . . . . . Fabricators 1 | . . . . . . . . . . . 1 . . . . . . . . Prioritize 1 | . . . . . . . . . . . 1 . . . . . . . . Repair Stations 2 | . . . . . 2 . . . . . . . . . . . . . . Patch 2 | . . . . . 2 . . . . . . . . . . . . . . Recycling Units 1 | . . . . . . . . . . . . . . 1 . . . . . Scrapoids 1 | . . . . . . . . . . . . . . 1 . . . . . Scanalyzers 3 | . . 1 2 . . . . . . . . . . . . . . . . Extract 3 | . . 1 2 . . . . . . . . . . . . . . . . Garrison Access 3 | . . . . 3 . . . . . . . . . . . . . . . Broadcast 1 | . . . . 1 . . . . . . . . . . . . . . . Decoy 1 | . . . . 1 . . . . . . . . . . . . . . . Watchers 1 | . . . . 1 . . . . . . . . . . . . . . . Data Cores Recovered 2 | . 1 . . 1 . . . . . . . . . . . . . . . Used 1 | . . . . 1 . . . . . . . . . . . . . . . Hacking Detections 59 | . 4 3 9 7 3 4 . 3 . . 3 . 4 10 2 1 2 2 2 Full Trace Events 12 | . 1 . . 2 1 . . 2 . . . . 3 2 . 1 . . . Feedback Events 5 | . 1 . . 1 . . . . . . . . 3 . . . . . . Corruption 3 | . 1 . . 1 . . . . . . . . 1 . . . . . . Hackware Fried 2 | . . . . . . . . . . . . . 2 . . . . . . Feedback Blocked . | . . . . . . . . . . . . . . . . . . . . Robot Schematics Acquired 3 | . . . . 1 . 1 . . . . . . . . . . 1 . . Robots Built 6 | . . . . . . . . 3 . . . . . . . 3 . . . Authchips 1 | . . . . . . . . 1 . . . . . . . . . . . Time 82 | . . . . . . . . 44 . . . . . . . 38 . . . Total Robot Build Rating 21 | . . . . . . . . 12 . . . . . . . 9 . . . Part Schematics Acquired 33 | . . 7 14 5 . 3 . 1 . . . . . . . . 3 . . Parts Built 6 | . . . . . . . . 3 . . 3 . . . . . . . . Authchips 4 | . . . . . . . . 2 . . 2 . . . . . . . . Time 92 | . . . . . . . . 41 . . 51 . . . . . . . . Total Part Build Rating 15 | . . . . . . . . 5 . . 10 . . . . . . . . Part Studies Acquired 14 | . . 8 4 1 . . . 1 . . . . . . . . . . . Parts Repaired 1 | . . . 1 . . . . . . . . . . . . . . . . Time 32 | . . . 32 . . . . . . . . . . . . . . . . Parts Recycled . | . . . . . . . . . . . . . . . . . . . . Recycled Matter 222 | . . . . . . 222 . . . . . . . . . . . . . Retrieved Matter 222 | . . . . . . 222 . . . . . . . . . . . . . Retrieved Components . | . . . . . . . . . . . . . . . . . . . . Parts Scanalyzed 16 | . . 3 8 4 . . . 1 . . . . . . . . . . . Part Schematics Acquired 16 | . . 3 8 4 . . . 1 . . . . . . . . . . . Parts Damaged . | . . . . . . . . . . . . . . . . . . . . Bothacking | -11 -10 -9 -8 -7 -7 -7 -7 -5 -5 -5 -4 -4 -4 -4 -4 -3 -3 -2 -1 ------------ Run | Yrd Mat Mat Mat Fac Sto Rec Scr Fac Upp Upp Fac Was Fac Ext Cet Res Tes Res Acc Used RIF Installer . | . . . . . . . . . . . . . . . . . . . . Robots Hacked 1 | . . . . . . . . . 1 . . . . . . . . . . Non-combat 1 | . . . . . . . . . 1 . . . . . . . . . . Combat . | . . . . . . . . . . . . . . . . . . . . Robot Hacks Applied 1 | . . . . . . . . . 1 . . . . . . . . . . parse_system 1 | . . . . . . . . . 1 . . . . . . . . . . Relay Couplers Released 2 | . . . . . . . . . . . . . . . . 2 . . . Machine Destruction 2 | . . . . . . . . . . . . . . . . 2 . . . Fabnet Peak Effective % . | . . . . . . . . . . . . . . . . . . . . Robots Rewired 17 | . . . . . . . . . . . . . . 17 . . . . . Allies Hacked . | . . . . . . . . . . . . . . . . . . . . Hacks Repelled . | . . . . . . . . . . . . . . . . . . . . Allies | -11 -10 -9 -8 -7 -7 -7 -7 -5 -5 -5 -4 -4 -4 -4 -4 -3 -3 -2 -1 -------- Run | Yrd Mat Mat Mat Fac Sto Rec Scr Fac Upp Upp Fac Was Fac Ext Cet Res Tes Res Acc Total Allies 71 | . . . . . 12 . . 3 . . . 19 . 29 5 3 . . . Largest Group 19 | . . . . . 10 10 8 8 . . . 19 11 14 6 5 1 . . Highest-Rated Group 702 | . . . . . 173 173 141 153 . . . 702 498 624 623 527 7 . . Highest-Rated Ally 159 | . . . . . 31 29 29 29 . . . 50 50 159 159 143 7 . . Total Orders 2 | . . . . . . . . . . . . . . 2 . . . . . ROAM 2 | . . . . . . . . . . . . . . 2 . . . . . Ally Attacks 524 | . . . . . 33 7 . 30 . . . 123 65 155 40 70 1 . . Total Damage 16336 | . . . . . 454 109 . 503 . . . 4703 2522 4260 1331 2402 52 . . Kills 62 | . . . . . 3 2 . 3 . . . 12 14 14 7 7 . . . Allies Corrupted . | . . . . . . . . . . . . . . . . . . . . Allies Melted . | . . . . . . . . . . . . . . . . . . . . Intel | -11 -10 -9 -8 -7 -7 -7 -7 -5 -5 -5 -4 -4 -4 -4 -4 -3 -3 -2 -1 ------- Run | Yrd Mat Mat Mat Fac Sto Rec Scr Fac Upp Upp Fac Was Fac Ext Cet Res Tes Res Acc Active Infowar (turns) 8311 | . 114 . 422 1118 818 538 1515 848 549 . 140 203 164 78 . 755 538 511 . Optics 632 | . . . . . . . . . . . . . . . . . 121 511 . Sensors 2324 | . . . . . . . . . . . 140 203 164 78 . 755 537 447 . Terrain 6296 | . . . 422 1118 818 538 1515 848 549 . 75 203 154 56 . . . . . Seismic 278 | . 114 . . . . . . 164 . . . . . . . . . . . Robot Analysis Total 11 | . 1 . . 1 . 2 6 . . . 1 . . . . . . . . Derelict Logs Recovered 1 | . . . . . . . . . 1 . . . . . . . . . . Drone Launches . | . . . . . . . . . . . . . . . . . . . . Drone Recoveries . | . . . . . . . . . . . . . . . . . . . . Exploration | -11 -10 -9 -8 -7 -7 -7 -7 -5 -5 -5 -4 -4 -4 -4 -4 -3 -3 -2 -1 ------------- Run | Yrd Mat Mat Mat Fac Sto Rec Scr Fac Upp Upp Fac Was Fac Ext Cet Res Tes Res Acc Turns Passed 12187 | . 548 679 1111 1119 818 538 1515 848 781 59 263 203 164 1025 498 837 538 529 114 Spaces Moved 6552 | 1 324 321 498 569 277 213 666 425 461 20 253 176 221 801 222 402 241 282 179 Core 356 | . . . . . . . . . . . . . . 132 . . . 58 166 Treads 4275 | . 189 316 498 569 277 213 666 333 . . . . . 125 222 402 241 224 . Legs 163 | 1 135 . . . . . . . . . . . . 27 . . . . . Wheels 574 | . . 5 . . . . . 92 461 16 . . . . . . . . . Hover 1171 | . . . . . . . . . . 4 253 176 221 517 . . . . . Flight 13 | . . . . . . . . . . . . . . . . . . . 13 Fastest Speed 36 | 120 120 115 160 160 225 225 225 115 100 190 43 48 43 36 160 160 160 50 37 Average Speed 142 | 120 143 159 160 160 231 225 225 147 146 204 47 48 47 67 160 160 160 138 49 Slowest Speed 300 | 120 160 240 160 240 240 225 225 240 190 260 48 48 48 300 160 160 160 240 50 Overloaded Moves 109 | . . . . . . . . . . . 5 . 28 76 . . . . . Propulsion Burnouts . | . . . . . . . . . . . . . . . . . . . . Robots Hopped . | . . . . . . . . . . . . . . . . . . . . Potential Cave-ins . | . . . . . . . . . . . . . . . . . . . . Cave-ins Triggered . | . . . . . . . . . . . . . . . . . . . . Exploration Rate (%) 36 | 1 63 46 55 20 44 53 51 10 69 6 7 84 6 75 78 13 31 7 7 Regions Visited 19 Branch Regions 8 Pre-discovered Areas 1 | . . . . . . . . . 1 . . . . . . . . . . Known Exits Taken 6 | . . . . 1 . . . 1 . . . . 1 . . 1 1 1 . Unknown Exits Taken 11 | 1 1 1 1 . 1 1 1 . 1 1 . . . 1 1 . . . . Scrap Searched 6 | . . . . . . . 3 . 3 . . . . . . . . . . Spaces Dug 29 | . . . 11 . . . . . . . . 1 3 . . . 14 . . Terrain Destroyed 704 | . 162 41 41 22 1 44 . 95 126 10 . 1 3 31 35 3 43 41 5 Melee 4 | . . . . . . . . . . . . 1 3 . . . . . . Projectile 49 | . . . 9 . . . . 1 4 10 . . . 9 . 2 10 4 . AOE 650 | . 162 41 32 22 1 44 . 94 122 . . . . 22 35 . 33 37 5 Terrain Rammed . | . . . . . . . . . . . . . . . . . . . . Walls Destroyed . | . . . . . . . . . . . . . . . . . . . . Machines Disabled . | . . . . . . . . . . . . . . . . . . . . Actions | -11 -10 -9 -8 -7 -7 -7 -7 -5 -5 -5 -4 -4 -4 -4 -4 -3 -3 -2 -1 --------- Run | Yrd Mat Mat Mat Fac Sto Rec Scr Fac Upp Upp Fac Was Fac Ext Cet Res Tes Res Acc Total 8425 | . 380 406 687 690 378 264 683 593 517 26 363 273 257 1135 354 515 332 371 201 Wait 603 | . . . 51 19 14 27 6 89 4 . 57 86 19 81 85 37 25 3 . Move 6535 | . 323 320 497 568 276 212 665 424 460 19 253 175 220 800 221 401 240 282 179 Hop . | . . . . . . . . . . . . . . . . . . . . Pick Up 110 | . 7 11 17 13 13 4 4 9 3 . 3 . 1 7 1 5 3 9 . Fast Attach 81 | . 2 4 3 1 2 . . 6 3 . 6 . 3 27 10 4 6 2 2 Attach 80 | . 2 8 4 4 6 . 3 8 7 1 5 . 1 15 3 3 1 7 2 Detach 57 | . 4 6 3 . 1 3 . 1 2 . 5 . . 12 9 2 1 7 1 Swap 134 | . 2 12 20 14 18 3 3 15 4 . 5 2 1 2 4 15 11 3 . Drop 124 | . 7 2 18 16 7 7 2 12 . . 11 . 2 2 10 8 12 8 . Fire 481 | . 31 41 69 48 40 7 . 29 34 6 12 9 6 50 11 35 28 23 2 Melee 46 | . . . . . . . . . . . 6 1 4 35 . . . . . Ram 17 | . . . . . . . . . . . . . . 1 . . . 1 15 Kick . | . . . . . . . . . . . . . . . . . . . . Crush 54 | . 2 2 5 7 1 1 . . . . . . . . . 5 5 26 . Escape Stasis 33 | . . . . . . . . . . . . . . 33 . . . . . Rewire 70 | . . . . . . . . . . . . . . 70 . . . . . Trap . | . . . . . . . . . . . . . . . . . . . . Miscellaneous . | . . . . . . . . . . . . . . . . . . . . Route ------- -11/Scrapyard -10/Materials (discovered 3 exits: *Mat x2 / Min) -9/Materials (discovered 2 exits: *Mat / [*Min]) -8/Materials -7/Factory (discovered 5 exits: [*Fac] / *Sto x2 / Low x2) -7/Storage -7/Recycling -7/Scraptown -5/Factory (discovered 2 exits: *Upp x2) -5/Upper Caves -5/Upper Caves -4/Factory (discovered 5 exits: Upp x2 / Ext x2 / Arm) -4/Waste -4/Factory (discovered 5 exits: *Upp x2 / *Ext x2 / Arm) -4/Extension (discovered 2 exits: *Res / *Cet) -4/Cetus (discovered 2 exits: *Res / [*Arc]) -3/Research -3/Testing -2/Research -1/Access History --------- Turn | Location | Event 1 | -11/Scrapyard | Discovered new exit (range 0) 1 | -11/Scrapyard | Entered Materials 123 | -10/Materials | Discovered new exit (range 15) 306 | -10/Materials | Build established: Mutant 365 | -10/Materials | Identified exit to Mines 394 | -10/Materials | Discovered new exit (range 16) 549 | -10/Materials | Entered another Materials area 549 | -9/Materials | Evolved 2 slots: Utility x2 798 | -9/Materials | Discovered new exit (range 9) 940 | -9/Materials | Destroyed 9 combat bots 1058 | -9/Materials | Central database locked down 1118 | -9/Materials | Lost 3 parts (1p2n) 1168 | -9/Materials | Discovered new exit (range 15) 1228 | -9/Materials | Entered another Materials area 1228 | -8/Materials | Evolved 2 slots: Utility x2 1466 | -8/Materials | Repaired Beam Rifle 2289 | -8/Materials | Discovered new exit (range 5) 2339 | -8/Materials | Entered Factory 2339 | -7/Factory | Evolved 2 slots: Utility x1, Weapon x1 2561 | -7/Factory | Identified exit to Storage 2561 | -7/Factory | Identified exit to Lower Caves 2641 | -7/Factory | Build established: Skirmisher 2914 | -7/Factory | Discovered new exit (range 15) 3458 | -7/Factory | Entered Storage 3618 | -7/Storage | Met a pair of Derelict thieves 3750 | -7/Storage | Destroyed 13 combat bots 3758 | -7/Storage | Lost 4 parts (3u1w) 4134 | -7/Storage | Assisted by bots powering up and referring to "LRC-V3" 4197 | -7/Storage | Discovered new exit (range 14) 4257 | -7/Storage | Used back door to open Recycling access 4276 | -7/Storage | Entered Recycling 4276 | -7/Recycling | Accompanied by 10 allies 4432 | -7/Recycling | Build established: Commander-Skirmisher 4736 | -7/Recycling | Scanned before Scraplab entrance 4760 | -7/Recycling | Discovered new exit (range 12) 4768 | -7/Recycling | Entered Scraplab 4814 | -7/Recycling | Entered Scraptown 4814 | -7/Scraptown | Accompanied by 8 allies 4814 | -7/Scraptown | System corruption cleaned by C-Scrubber 4903 | -7/Scraptown | Visited Comm Corps 5045 | -7/Scraptown | Visited UFD Registry 5045 | -7/Scraptown | Registered with UFD as "Roughrunner" 5299 | -7/Scraptown | Visited Abandonware Association 5328 | -7/Scraptown | Learned abandonware demo "MELTYB.EXE" 5459 | -7/Scraptown | Visited Supply Room 5537 | -7/Scraptown | Visited Analyses Database 5615 | -7/Scraptown | Visited DA-N13 Charitable Foundation 5624 | -7/Scraptown | Found DCF Scrap (30 items) 5730 | -7/Scraptown | Visited Derelict Rescue Squad 5743 | -7/Scraptown | Found DRS Beacon 5809 | -7/Scraptown | Visited Junk Repository 5914 | -7/Scraptown | Visited Chapter 10 6209 | -7/Scraptown | Met Optimus 6209 | -7/Scraptown | Accepted into 0bPrime 6316 | -7/Scraptown | Discovered new exit (range 6) 6329 | -7/Scraptown | Entered Factory 6329 | -5/Factory | Accompanied by 5 allies 6329 | -5/Factory | Evolved 4 slots: Propulsion x1, Utility x3 6511 | -5/Factory | Fabricated B-48 Gladiator (x3) 6536 | -5/Factory | Fabricated Hacking Suite (x1) 6557 | -5/Factory | Fabricated Seismic Detector (x2) 6658 | -5/Factory | Lost 3 allies 6759 | -5/Factory | Identified exit to Upper Caves 6885 | -5/Factory | Lost 4 allies 7177 | -5/Factory | Entered Upper Caves 7259 | -5/Upper Caves | Attracted the attention of an 0b10 checkpoint 7323 | -5/Upper Caves | Build established: Hacker-Mutant 7475 | -5/Upper Caves | Destroyed 8 combat bots 7529 | -5/Upper Caves | Lost 3 parts (1p1n1w) 7767 | -5/Upper Caves | Lost 4 parts (1u3w) 7904 | -5/Upper Caves | Discovered new exit (range 12) 7947 | -5/Upper Caves | Learned location of Warlord (-5) 7958 | -5/Upper Caves | Entered another Upper Caves area 7976 | -5/Upper Caves | Discovered new exit (range 11) 7992 | -5/Upper Caves | Attracted the attention of an 0b10 checkpoint 8017 | -5/Upper Caves | Entered Factory 8017 | -4/Factory | Evolved 2 slots: Propulsion x2 8183 | -4/Factory | Fabricated Cld. Airjet (x1) 8203 | -4/Factory | Fabricated Imp. Terrain Scanner (x2) 8259 | -4/Factory | Identified exit to Upper Caves 8259 | -4/Factory | Identified exit to Extension 8259 | -4/Factory | Identified exit to Armory 8280 | -4/Factory | Manually triggered Chute Trap 8280 | -4/Factory | Sucked down chute 8280 | -4/Factory | Entered Waste 8281 | -4/Waste | Met a frightened Derelict 8284 | -4/Waste | Spotted C-40 Crusher 8295 | -4/Waste | EMP discharged 8295 | -4/Waste | System corruption reached 10% 8305 | -4/Waste | Met Warlord forces unprepared to attack 8340 | -4/Waste | Spotted C-40 Crusher 8350 | -4/Waste | Allies destroyed C-40 Crusher 8350 | -4/Waste | Spotted C-40 Crusher 8354 | -4/Waste | Allies destroyed C-40 Crusher 8358 | -4/Waste | Spotted C-40 Crusher 8361 | -4/Waste | Allies destroyed C-40 Crusher 8376 | -4/Waste | Allies destroyed C-40 Crusher 8382 | -4/Waste | Spotted C-40 Crusher 8393 | -4/Waste | Allies destroyed C-40 Crusher 8395 | -4/Waste | EMP discharged 8422 | -4/Waste | Spotted C-40 Crusher 8423 | -4/Waste | Lost 6 allies 8426 | -4/Waste | Discovered new exit (range 16) 8437 | -4/Waste | Allies destroyed C-40 Crusher 8483 | -4/Waste | Entered Factory 8483 | -4/Factory | Accompanied by 11 allies 8495 | -4/Factory | Hacking Suite fried by hacking feedback 8529 | -4/Factory | Garrison activated, responded to threat 8561 | -4/Factory | Hacking Suite fried by hacking feedback 8624 | -4/Factory | Lost 7 allies 8647 | -4/Factory | Entered Extension 8676 | -4/Extension | Disrupted transfer network 8756 | -4/Extension | Lost 4 parts (1n2u1w) 8797 | -4/Extension | Rescued a captive Derelict 8798 | -4/Extension | Rescued a captive Derelict 8801 | -4/Extension | Scrapoids reinforcements arrived? 8845 | -4/Extension | Rescued a captive Derelict 8919 | -4/Extension | Rescued a captive Derelict 8919 | -4/Extension | Rescued a captive Derelict 9001 | -4/Extension | Lost 12 allies 9120 | -4/Extension | Lost 5 parts (1n4u) 9152 | -4/Extension | Spotted B-86 Titan 9153 | -4/Extension | Spotted B-86 Titan 9162 | -4/Extension | Rescued a captive Derelict 9205 | -4/Extension | Rescued a captive Derelict 9257 | -4/Extension | Lost 6 parts (1p4n1u) 9286 | -4/Extension | Rescued a captive Derelict 9293 | -4/Extension | Core integrity fell below 50% 9302 | -4/Extension | Lost 5 allies 9336 | -4/Extension | Lost 9 parts (1p5n1u2w) 9403 | -4/Extension | Lost 4 allies 9419 | -4/Extension | Core integrity fell below 20% 9449 | -4/Extension | Rescued A7 9479 | -4/Extension | Destroyed B-86 Titan 9659 | -4/Extension | Discovered new exit (range 10) 9661 | -4/Extension | Discovered new exit (range 6) 9672 | -4/Extension | Entered Cetus 9672 | -4/Cetus | Accompanied by 1 ally (A7) 9677 | -4/Cetus | Acquired a Cetus Manufacturing Module code from A7 9695 | -4/Cetus | Spotted Cetus Guard 9695 | -4/Cetus | Spotted Cetus Guard 9697 | -4/Cetus | Spotted Cetus Guard 9704 | -4/Cetus | Allies destroyed Cetus Guard 9709 | -4/Cetus | Allies destroyed Cetus Guard 9717 | -4/Cetus | Destroyed Cetus Guard 9757 | -4/Cetus | System corruption reached 30% 9858 | -4/Cetus | Started Cetus Manufacturing Module 9883 | -4/Cetus | Manufactured an Enhanced Grunt 9885 | -4/Cetus | Escorted A7 to Cetus Mainframe 9908 | -4/Cetus | Manufactured an Enhanced Grunt 9933 | -4/Cetus | Manufactured an Enhanced Grunt 9958 | -4/Cetus | Manufactured an Enhanced Grunt 9983 | -4/Cetus | Manufactured an Enhanced Grunt 10037 | -4/Cetus | Discovered new exit (range 16) 10070 | -4/Cetus | Spotted Cetus Guard 10070 | -4/Cetus | Spotted Cetus Guard 10074 | -4/Cetus | Spotted Cetus Guard 10075 | -4/Cetus | Spotted Cetus Guard 10085 | -4/Cetus | Destroyed Cetus Guard 10085 | -4/Cetus | Destroyed Cetus Guard 10089 | -4/Cetus | Allies destroyed Cetus Guard 10091 | -4/Cetus | Allies destroyed Cetus Guard 10096 | -4/Cetus | Discovered new exit (range 16) 10105 | -4/Cetus | Met Revision 17 10164 | -4/Cetus | Build established: Scavenger-Mutant 10170 | -4/Cetus | Entered Research 10170 | -3/Research | Accompanied by 5 allies (A7) 10170 | -3/Research | Evolved 2 slots: Propulsion x1, Utility x1 10175 | -3/Research | Received a hacking code to weaken MAIN.C 10370 | -3/Research | Revision forces began assault on 0b10 10394 | -3/Research | Met up with Revision 17++ 10423 | -3/Research | Discovered new exit (range 11) 10476 | -3/Research | Build established: Scavenger-Tank 10686 | -3/Research | Found Prototype Launcher 10686 | -3/Research | Identified Hellfire Missile Launcher 10706 | -3/Research | Fabricated C-17 Slicer? 10870 | -3/Research | Research terminal network offline 10994 | -3/Research | Identified exit to Testing 11007 | -3/Research | Entered Testing 11007 | -3/Testing | Accompanied by 1 ally 11020 | -3/Testing | Scanned by Researcher 11066 | -3/Testing | Found Prototype Energy Cannon 11148 | -3/Testing | Identified Hpw. Disruptor Cannon 11150 | -3/Testing | Found Prototype Ballistic Cannon 11150 | -3/Testing | Identified Omega Cannon 11283 | -3/Testing | Found Prototype Ballistic Cannon 11283 | -3/Testing | Identified Perforator 11431 | -3/Testing | Discovered new exit (range 20) 11543 | -3/Testing | Identified exit to Research 11545 | -3/Testing | Entered Research 11545 | -2/Research | Evolved 2 slots: Utility x1, Weapon x1 11962 | -2/Research | System corruption reached 10% 12056 | -2/Research | Core integrity fell below 50% 12068 | -2/Research | Discovered new exit (range 10) 12073 | -2/Research | Identified exit to Access 12074 | -2/Research | Entered Access 12074 | -1/Access | Evolved 2 slots: Power x1, Utility x1 12087 | -1/Access | Lost 12 parts (3n8u1w) 12151 | -1/Access | Core integrity fell below 50% 12167 | -1/Access | Core integrity fell below 20% 12188 | -1/Access | Destroyed by S-43 Plague with Heavy Machine Gun Last Messages --------------- 12168_ Slug penetrates Wall. 12171_ Penetrated by Slug. 12171_ Slug penetrates Wall. 12173_ HV Slug penetrates H-88 Terminator. 12173_ HV Slug penetrates Wall. 12173_ HV Slug penetrates H-88 Terminator. 12173_ H-88 Terminator suffers critical hit (Destroy). 12173_ Destroyed Lgt. Quantum Reactor. 12173_ HV Slug penetrates G-73 Enforcer. 12173_ G-73 Enforcer suffers critical hit (Destroy). 12173_ G-73 Enforcer destroyed. 12173_ HV Slug penetrates H-88 Terminator. 12173_ HV Slug penetrates Wall. 12173_ Penetrated by Slug. 12173_ Slug penetrates Wall. 12175_ Penetrated by Slug. 12175_ Slug penetrates Wall. 12175_ Slug penetrates S-43 Plague. 12175_ Slug penetrates Wall. 12178_ Penetrated by Slug. Map ----- +----------------------------------------------------+ | ?????????????# """" # #??????? | | ?????????????# "" # ##??????? | | ?????????????# "" # !!= #???????? | | ?????????????# [ """ # * !== #???????? | | ?????????????## * """ "[%! != #???????? | | ??????????????# # = #???????? | | ??????????????# # #???????? | | ??????????????# # ##??????? | | ??????????????############## #??????? | | ???????????????# # #??????? | | ???????????????# # #??????? | | ???????????????# + +??????? | | ???????????????# # #??????? | | ???????????????# # #??????? | | ???????????????# ?# #??????? | | ???????????????# ?######## #??????? | | ???????????????# ?????????# #??????? | | ???????????????# ?????????# #??????? | | ???????????????# ??????????# #??????? | | ???????????????# ??????????# #??????? | | ???????????????# ???????????# #??????? | | ???????????????? ???????????# ######## | | ????????????????################### | | ???????????????????# # | | ???????????????????# # | | ???????????????????# @ s | | ???????????????????#! * # | | ???????????????????# # | | ???????????????????# # " | | ???????????????????################ """ ? | | ??????????????????????????????????# """ **=? | | ??????????????????????????????????# " *= ? | | ??????????????????????????????????# ? *=?? | | ??????????????????????????????????? ?? ?? | | ??????????????????????????????????? ?? ??? | | ??????????????????????????????????? " ?????? | | ??????????????????????????????????? """ ????? | | ??????????????????????????????????? "?" ?????? | | ??????????????????????????????????? ??????????? | | ??????????????????????????????????? ???????????? | | ?????????????????????????????????????????????????? | | ?????????????????????????????????????????????????? | | ?????????????????????????????????????????????????? | | ?????????????????????????????????????????????????? | | ?????????????????????????????????????????????????? | | ?????????????????????????????????????????????????? | | ?????????????????????????????????????????????????? | | ?????????????????????????????????????????????????? | | ?????????????????????????????????????????????????? | | ?????????????????????????????????????????????????? | +----------------------------------------------------+ Best States ------------- Heat Dissipation 139 Energy Generation 25 Energy Capacity 350 Matter Stores 300 Matter Capacity 300 Sight Range 22 Robot Scan Range 18 Terrain Scan Range 16 Terrain Scan Density 410 Armor Coverage 1350 Resistance: TH 10 Core Shielding 30 Utility Shielding 66 Weapon Shielding 66 Evasion (%) 62 Targeting Accuracy 18 Melee Accuracy 12 Launcher Accuracy 40 Recoil Reduction 5 Salvage Targeting 2 Offensive Hacking 41 Defensive Hacking 10 Authchip Count 6 Item Schematics ----------------- Imp. Targeting Computer | -9/Materials | Scanalyzed Core Shielding | -9/Materials | Scanalyzed Seismic Detector | -9/Materials | Scanalyzed Aluminum Leg | -9/Materials | Extracted Med. Laser | -9/Materials | Extracted Shotgun | -9/Materials | Extracted Hvy. Assault Rifle | -9/Materials | Extracted Missile Launcher | -8/Materials | Scanalyzed Cooling System | -8/Materials | Scanalyzed Hpw. Shotgun | -8/Materials | Extracted Hcp. Matter Pod | -8/Materials | Scanalyzed Mni. Grenade Launcher | -8/Materials | Scanalyzed Wheel | -8/Materials | Scanalyzed Imp. Terrain Scanner | -8/Materials | Scanalyzed Imp. Utility Shielding | -8/Materials | Scanalyzed Imp. Light Armor Plating | -8/Materials | Scanalyzed Beam Rifle | -8/Materials | Extracted Titanium Leg | -8/Materials | Extracted EM Pulse Cannon | -8/Materials | Extracted Adv. Treads | -8/Materials | Extracted Imp. Ion Engine | -8/Materials | Extracted Hvy. Phase Cannon | -7/Factory | Hacked Hacking Suite | -7/Factory | Scanalyzed Imp. Deuterium Engine | -7/Factory | Scanalyzed Prc. Shock Rifle | -7/Factory | Scanalyzed Med. Treads | -7/Factory | Scanalyzed Wave Gun | -7/Recycling | Hacked Imp. Medium Armor Plating | -7/Recycling | Hacked Adv. Signal Interpreter | -7/Recycling | Hacked Cld. Airjet | -5/Factory | Scanalyzed Adv. Micro-nuke Launcher | -3/Testing | Archive Hvy. Wave Gun | -3/Testing | Archive Enh. Flexi-carbon Leg | -3/Testing | Archive Robot Schematics ------------------ B-48 Gladiator | -7/Factory | Hacked C-17 Slicer | -7/Recycling | Hacked A-15 Conveyor | -3/Testing | Archive Fabricated ------------ B-48 Gladiator | x3 | -5/Factory | Authchip Hacking Suite | x1 | -5/Factory | Authchip Seismic Detector | x2 | -5/Factory | Authchip Cld. Airjet | x1 | -4/Factory | Authchip Imp. Terrain Scanner | x2 | -4/Factory | Authchip C-17 Slicer | x3 | -3/Research Repaired ---------- Beam Rifle | 25% | -8/Materials Studied --------- Lgt. Treads | -9/Materials | Hacked Imp. Light Cannon | -9/Materials | Hacked EMP Blaster | -9/Materials | Hacked Imp. Ion Engine | -9/Materials | Hacked Hvy. Assault Rifle | -9/Materials | Hacked Ion Engine | -9/Materials | Hacked Wheel | -9/Materials | Hacked Particle Gun | -9/Materials | Hacked Missile Launcher | -8/Materials | Hacked Mni. Grenade Launcher | -8/Materials | Hacked Beam Rifle | -8/Materials | Hacked Imp. Treads | -8/Materials | Hacked Imp. Deuterium Engine | -7/Factory | Hacked Wave Gun | -5/Factory | Hacked Alien Tech Used ----------------- None Achievements -------------- My Business Is Booming Challenges ------------ None Game ------ Seed WeaponDispersalPit Manual? 0 Play Time 01:35:44 Cumulative 1234.0 hours Start 2025.11.27 @ 15:11:45 End 2025.11.27 @ 16:57:32 Sessions 1 Manual Loads 0 Difficulty Rogue Special Mode None Game No. 1517 Rogue 1233 Adventurer 124 Explorer 160 Win Type - Total 58 Types 44/0/8/4/1/0/0/1/0/0 Lore% 93 Gallery% 86 Achievement% 66 Wizard Run 0 Options --------- Layout 0 ASCII 0 Keyboard 1 Movement Numpad Keybinds 0 Fullscreen 2 Font 18/X11 Map View 76x50 Zoom Use 0% Tactical HUD 1 Map Filters NONE Filters NONE Steam 1 RUN: 6da18317-812a-46b2-9f03-fee9c942e454